[Event "FRA-ch Youth U12W 2019"]
[Site "Hyeres"]
[Date "2019.04.20"]
[Round "8.4"]
[White "Grimault, Leane"]
[Black "Bousmaha, Leila"]
[Result "1-0"]
[ECO "D11"]
[WhiteElo "1421"]
[BlackElo "1616"]
[Annotator "NA"]
[PlyCount "105"]
[EventDate "2019.04.14"]
[EventType "swiss"]
[EventCountry "FRA"]
[SourceTitle "playchess.com"]
[Source "ChessBase"]
[SourceQuality "1"]
[TimeControl "5400+30"]

1. Nf3 {[%emt 0:00:00]} d5 {[%emt 0:00:00]} 2. c4 {[%emt 0:00:00]} c6 {[%emt 0:00:00]} 3. d4 {[%emt 0:00:12]} Bf5 {[%emt 0:00:12]} 4. Qb3 {[%emt 0:01:47]} Nf6 {[%emt 0:04:14]} 5. Qxb7 {[%emt 0:04:15]} Nbd7 {[%emt 0:00:22]} 6. Nc3 {[%emt 0:09:35]} e6 {[%emt 0:07:09]} 7. e3 {[%emt 0:07:24]} Qc8 {[%emt 0:09:45]} 8. Qxc8+ {[%emt 0:04:25]} Rxc8 {[%emt 0:00:14]} 9. b3 {[%emt 0:08:07]} Be7 {[%emt 0:03:52]} 10. Bb2 {[%emt 0:04:52]} c5 {[%emt 0:05:27]} 11. cxd5 {[%emt 0:08:53]} exd5 {[%emt 0:00:47]} 12. dxc5 {[%emt 0:02:31]} Bxc5 {[%emt 0:00:33]} 13. Nd4 {[%emt 0:04:28]} Bg6 {[%emt 0:01:03]} 14. Ba6 {[%emt 0:01:39]} Rb8 {[%emt 0:06:03]} 15. Bb5 {[%emt 0:04:37]} O-O {[%emt 0:04:31]} 16. Bxd7 {[%emt 0:01:29]} Nxd7 {[%emt 0:00:25]} 17. Nxd5 {[%emt 0:00:27]} Be4 {[%emt 0:03:34]} 18. Nf4 {[%emt 0:03:17]} Bb4+ {[%emt 0:16:33]} 19. Ke2 {[%emt 0:01:44]} Bd6 {[%emt 0:00:20]} 20. f3 {[%emt 0:01:17]} Bb7 {[%emt 0:00:20]} 21. Nd3 {[%emt 0:01:37]} Ba6 {[%emt 0:00:36]} 22. Kd2 {[%emt 0:02:02]} Rfd8 {[%emt 0:02:34]} 23. Nc6 {[%emt 0:02:13]} Nc5 {[%emt 0:04:39]} 24. Nxb8 {[%emt 0:00:46]} Nxd3 {[%emt 0:00:22]} 25. Nxa6 {[%emt 0:00:45]} Nxb2 {[%emt 0:00:22]} 26. Ke2 {[%emt 0:00:50]} Ba3 {[%emt 0:01:08]} 27. e4 {[%emt 0:06:13]} h6 {[%emt 0:05:37]} 28. Rab1 {[%emt 0:03:11]} Rd6 {[%emt 0:07:58]} 29. Nc7 {[%emt 0:01:07]} Nd3 {[%emt 0:03:23]} 30. Rhd1 {[%emt 0:00:39]} Nf4+ {[%emt 0:00:29]} 31. Kf1 {[%emt 0:01:12]} Rb6 {[%emt 0:02:33]} 32. Nd5 {[%emt 0:01:36]} Nxd5 {[%emt 0:01:20]} 33. exd5 {[%emt 0:01:41]} Kf8 {[%emt 0:00:10]} 34. Ke2 {[%emt 0:00:44]} Ke7 {[%emt 0:01:19]} 35. Rd4 {[%emt 0:00:52]} Bc5 {[%emt 0:01:08]} 36. Rc4 {[%emt 0:00:25]} Bd6 {[%emt 0:01:13]} 37. Rbc1 {[%emt 0:00:29]} Rb5 {[%emt 0:00:39]} 38. Rd1 {[%emt 0:01:28]} f5 {[%emt 0:01:24]} 39. g3 {[%emt 0:01:19]} g5 {[%emt 0:00:21]} 40. Rc6 {[%emt 0:01:51]} a5 {[%emt 0:00:51]} 41. Ra6 {[%emt 0:00:52]} Rc5 {[%emt 0:00:18]} 42. Ra7+ {[%emt 0:01:14]} Kf6 {[%emt 0:00:04]} 43. Ke3 {[%emt 0:00:42]} Rb5 {[%emt 0:01:41]} 44. Rd7 {[%emt 0:01:29]} f4+ {[%emt 0:00:54]} 45. Ke2 {[%emt 0:00:55]} Ke5 {[%emt 0:01:40]} 46. gxf4+ {[%emt 0:00:29]} gxf4 {[%emt 0:00:10]} 47. Kf1 {[%emt 0:00:13]} a4 {[%emt 0:01:19]} 48. Re1+ {[%emt 0:00:24]} Kxd5 {[%emt 0:00:35]} 49. Rd1+ {[%emt 0:00:10]} Ke5 {[%emt 0:00:25]} 50. R7xd6 {[%emt 0:00:11]} a3 {[%emt 0:00:32]} 51. Rxh6 {[%emt 0:00:15]} Rb8 {[%emt 0:00:43]} 52. h4 {[%emt 0:00:14]} Rc8 {[%emt 0:01:03]} 53. Ra6 {[%emt 0:00:28]} 1-0

[Event "FRA-ch Youth U12W 2019"]
[Site "Hyeres"]
[Date "2019.04.21"]
[Round "9.1"]
[White "Micheli, Elora"]
[Black "Berezovsky, Fiorina"]
[Result "1/2-1/2"]
[ECO "B80"]
[WhiteElo "1359"]
[BlackElo "1604"]
[Annotator "NA"]
[PlyCount "61"]
[EventDate "2019.04.14"]
[EventType "swiss"]
[EventCountry "FRA"]
[SourceTitle "playchess.com"]
[Source "ChessBase"]
[SourceQuality "1"]
[TimeControl "5400+30"]

1. e4 {[%emt 0:00:01]} c5 {[%emt 0:00:00]} 2. Nf3 {[%emt 0:00:41]} e6 {[%emt 0:00:43]} 3. Nc3 {[%emt 0:00:53]} a6 {[%emt 0:00:58]} 4. d4 {[%emt 0:01:04]} cxd4 {[%emt 0:00:33]} 5. Nxd4 {[%emt 0:03:48]} Qc7 {[%emt 0:00:57]} 6. g3 {[%emt 0:01:13]} Nf6 {[%emt 0:03:35]} 7. Bg2 {[%emt 0:01:20]} Bb4 {[%emt 0:02:12]} 8. Bd2 {[%emt 0:01:41]} Nc6 {[%emt 0:02:24]} 9. Nb3 {[%emt 0:01:59]} O-O {[%emt 0:07:00]} 10. O-O {[%emt 0:01:45]} Be7 {[%emt 0:05:01]} 11. a4 {[%emt 0:02:48]} b6 {[%emt 0:02:17]} 12. f4 {[%emt 0:01:16]} d6 {[%emt 0:02:50]} 13. Be3 {[%emt 0:02:24]} Bb7 {[%emt 0:01:52]} 14. Qe2 {[%emt 0:01:39]} Rfd8 {[%emt 0:02:46]} 15. Rad1 {[%emt 0:03:46]} Rac8 {[%emt 0:04:49]} 16. Qf2 {[%emt 0:00:57]} Nd7 {[%emt 0:09:07]} 17. f5 {[%emt 0:02:09]} Nce5 {[%emt 0:01:57]} 18. Bh3 {[%emt 0:03:36]} exf5 {[%emt 0:05:07]} 19. Bxf5 {[%emt 0:00:45]} Rf8 {[%emt 0:02:38]} 20. Nd5 {[%emt 0:01:03]} Bxd5 {[%emt 0:00:41]} 21. exd5 {[%emt 0:00:05]} Rb8 {[%emt 0:01:55]} 22. Nd4 {[%emt 0:04:47]} Bf6 {[%emt 0:06:13]} 23. b3 {[%emt 0:02:13]} Rfe8 {[%emt 0:01:39]} 24. c4 {[%emt 0:08:52]} Re7 {[%emt 0:07:35]} 25. Bh3 {[%emt 0:04:01]} Nc5 {[%emt 0:02:26]} 26. Qc2 {[%emt 0:04:52]} Nxc4 {[%emt 0:04:30]} 27. Qxc4 {[%emt 0:03:28]} Rxe3 {[%emt 0:00:21]} 28. b4 {[%emt 0:07:12]} Bxd4 {[%emt 0:00:31]} 29. Rxd4 {[%emt 0:00:26]} b5 {[%emt 0:01:30]} 30. Qc1 {[%emt 0:00:57]} Qe7 {[%emt 0:01:51]} 31. bxc5 {[%emt 0:00:48]} 1/2-1/2

[Event "FRA-ch Youth U12W 2019"]
[Site "Hyeres"]
[Date "2019.04.21"]
[Round "9.2"]
[White "Schippke, Manon"]
[Black "Gagua, Nani"]
[Result "1-0"]
[ECO "A05"]
[WhiteElo "1646"]
[BlackElo "1458"]
[Annotator "NA"]
[PlyCount "117"]
[EventDate "2019.04.14"]
[EventType "swiss"]
[EventCountry "FRA"]
[SourceTitle "playchess.com"]
[Source "ChessBase"]
[SourceQuality "1"]
[TimeControl "5400+30"]

1. e4 {[%emt 0:00:00]} c5 {[%emt 0:00:00]} 2. Nf3 {[%emt 0:00:23]} d6 {[%emt 0:00:00]} 3. g3 {[%emt 0:00:53]} Nf6 {[%emt 0:00:14]} 4. d3 {[%emt 0:00:57]} g6 {[%emt 0:00:27]} 5. Bg2 {[%emt 0:00:39]} Bg7 {[%emt 0:00:06]} 6. O-O {[%emt 0:01:03]} O-O {[%emt 0:00:05]} 7. Re1 {[%emt 0:01:07]} Nc6 {[%emt 0:02:03]} 8. c3 {[%emt 0:01:52]} Qb6 {[%emt 0:04:54]} 9. h3 {[%emt 0:02:32]} Nd7 {[%emt 0:02:50]} 10. Nbd2 {[%emt 0:05:06]} Nde5 {[%emt 0:01:02]} 11. Nxe5 {[%emt 0:02:14]} Nxe5 {[%emt 0:00:12]} 12. f4 {[%emt 0:03:42]} Nc6 {[%emt 0:02:56]} 13. Nc4 {[%emt 0:01:10]} Qc7 {[%emt 0:00:38]} 14. g4 {[%emt 0:05:31]} e6 {[%emt 0:02:10]} 15. f5 {[%emt 0:09:48]} exf5 {[%emt 0:01:09]} 16. gxf5 {[%emt 0:00:06]} gxf5 {[%emt 0:00:20]} 17. exf5 {[%emt 0:00:05]} Bxf5 {[%emt 0:00:56]} 18. Rf1 {[%emt 0:00:31]} Bg6 {[%emt 0:00:49]} 19. h4 {[%emt 0:00:19]} h5 {[%emt 0:09:52]} 20. Bg5 {[%emt 0:05:26]} f6 {[%emt 0:02:53]} 21. Bf4 {[%emt 0:01:44]} Ne5 {[%emt 0:00:26]} 22. Bd5+ {[%emt 0:02:34]} Kh8 {[%emt 0:00:29]} 23. Be4 {[%emt 0:05:00]} Bxe4 {[%emt 0:03:43]} 24. Bxe5 {[%emt 0:00:31]} dxe5 {[%emt 0:04:26]} 25. dxe4 {[%emt 0:00:37]} Qf7 {[%emt 0:01:04]} 26. Nd6 {[%emt 0:02:05]} Qg6+ {[%emt 0:00:51]} 27. Kh1 {[%emt 0:00:22]} Rad8 {[%emt 0:03:58]} 28. Rg1 {[%emt 0:00:17]} Qh6 {[%emt 0:01:50]} 29. Nf7+ {[%emt 0:00:27]} Rxf7 {[%emt 0:02:39]} 30. Qxd8+ {[%emt 0:00:06]} Rf8 {[%emt 0:00:46]} 31. Qc7 {[%emt 0:00:48]} Rg8 {[%emt 0:00:45]} 32. Qf7 {[%emt 0:01:38]} Rf8 {[%emt 0:00:10]} 33. Qg6 {[%emt 0:01:12]} Qh7 {[%emt 0:01:11]} 34. Qxh7+ {[%emt 0:00:31]} Kxh7 {[%emt 0:00:06]} 35. Rad1 {[%emt 0:00:31]} Rf7 {[%emt 0:00:28]} 36. Rd5 {[%emt 0:00:56]} b6 {[%emt 0:00:12]} 37. Rgd1 {[%emt 0:00:37]} a6 {[%emt 0:01:15]} 38. Rd7 {[%emt 0:00:11]} Rf8 {[%emt 0:00:12]} 39. Rb7 {[%emt 0:00:17]} b5 {[%emt 0:00:07]} 40. Ra7 {[%emt 0:00:22]} Rg8 {[%emt 0:00:44]} 41. Rxa6 {[%emt 0:00:37]} b4 {[%emt 0:00:15]} 42. c4 {[%emt 0:00:56]} Rc8 {[%emt 0:00:30]} 43. Rd5 {[%emt 0:00:17]} Kh8 {[%emt 0:00:34]} 44. Rad6 {[%emt 0:00:25]} Kh7 {[%emt 0:00:13]} 45. Rd8 {[%emt 0:02:08]} Rc7 {[%emt 0:00:11]} 46. Ra8 {[%emt 0:00:41]} Kg6 {[%emt 0:00:26]} 47. a4 {[%emt 0:00:47]} bxa3 {[%emt 0:00:06]} 48. bxa3 {[%emt 0:00:05]} Rc6 {[%emt 0:00:12]} 49. a4 {[%emt 0:00:35]} Rb6 {[%emt 0:00:10]} 50. Rxc5 {[%emt 0:44:19]} Rb1+ {[%emt 0:00:29]} 51. Kg2 {[%emt 0:00:00]} Rb2+ {[%emt 0:00:08]} 52. Kf3 {[%emt 0:00:00]} Bh6 {[%emt 0:00:19]} 53. Rb5 {[%emt 0:00:00]} Rh2 {[%emt 0:00:12]} 54. Rb7 {[%emt 0:00:00]} Bf4 {[%emt 0:00:38]} 55. Rg8+ {[%emt 0:00:00]} Kh6 {[%emt 0:00:03]} 56. Rgg7 {[%emt 0:00:00]} Rh3+ {[%emt 0:00:29]} 57. Kg2 {[%emt 0:00:00]} Rh2+ {[%emt 0:00:08]} 58. Kg1 {[%emt 0:00:00]} f5 {[%emt 0:00:16]} 59. exf5 {[%emt 0:00:00]} 1-0

[Event "FRA-ch Youth U12W 2019"]
[Site "Hyeres"]
[Date "2019.04.21"]
[Round "9.3"]
[White "Schebacher, Solene"]
[Black "Grimault, Leane"]
[Result "0-1"]
[ECO "B01"]
[WhiteElo "1555"]
[BlackElo "1421"]
[Annotator "NA"]
[PlyCount "90"]
[EventDate "2019.04.14"]
[EventType "swiss"]
[EventCountry "FRA"]
[SourceTitle "playchess.com"]
[Source "ChessBase"]
[SourceQuality "1"]
[TimeControl "5400+30"]

1. e4 {[%emt 0:00:00]} d5 {[%emt 0:00:00]} 2. exd5 {[%emt 0:00:14]} Qxd5 {[%emt 0:00:00]} 3. Nc3 {[%emt 0:00:44]} Qa5 {[%emt 0:00:11]} 4. d4 {[%emt 0:01:53]} Nf6 {[%emt 0:00:27]} 5. Bc4 {[%emt 0:01:51]} Bg4 {[%emt 0:01:21]} 6. Nf3 {[%emt 0:01:59]} Nc6 {[%emt 0:06:42]} 7. Be2 {[%emt 0:13:50]} O-O-O {[%emt 0:01:50]} 8. O-O {[%emt 0:12:23]} Bxf3 {[%emt 0:08:16]} 9. Bxf3 {[%emt 0:00:43]} Nxd4 {[%emt 0:04:18]} 10. Be3 {[%emt 0:01:25]} e5 {[%emt 0:02:09]} 11. Bg5 {[%emt 0:04:34]} Nxf3+ {[%emt 0:07:11]} 12. Qxf3 {[%emt 0:00:49]} Be7 {[%emt 0:10:05]} 13. Rfe1 {[%emt 0:01:18]} Rhe8 {[%emt 0:05:10]} 14. Qf5+ {[%emt 0:00:34]} Nd7 {[%emt 0:03:25]} 15. Bxe7 {[%emt 0:01:40]} Rxe7 {[%emt 0:00:12]} 16. Qxh7 {[%emt 0:00:15]} g6 {[%emt 0:00:44]} 17. Rad1 {[%emt 0:03:11]} Qb6 {[%emt 0:05:43]} 18. Nd5 {[%emt 0:00:46]} Qe6 {[%emt 0:01:34]} 19. Nxe7+ {[%emt 0:00:19]} Qxe7 {[%emt 0:00:09]} 20. Qh3 {[%emt 0:01:45]} f5 {[%emt 0:02:24]} 21. Qe3 {[%emt 0:00:54]} Kb8 {[%emt 0:01:19]} 22. Rd2 {[%emt 0:02:11]} Rh8 {[%emt 0:01:14]} 23. Red1 {[%emt 0:01:12]} Nb6 {[%emt 0:01:08]} 24. b3 {[%emt 0:01:49]} g5 {[%emt 0:09:10]} 25. Re2 {[%emt 0:01:20]} e4 {[%emt 0:00:42]} 26. f3 {[%emt 0:01:27]} Qh7 {[%emt 0:01:24]} 27. g3 {[%emt 0:01:01]} exf3 {[%emt 0:05:45]} 28. Qxf3 {[%emt 0:00:42]} Nc8 {[%emt 0:05:38]} 29. Qe3 {[%emt 0:05:29]} Qh6 {[%emt 0:01:53]} 30. Qe6 {[%emt 0:00:54]} Qh5 {[%emt 0:01:02]} 31. Rd5 {[%emt 0:02:51]} Nd6 {[%emt 0:00:51]} 32. Qe3 {[%emt 0:04:29]} a6 {[%emt 0:01:05]} 33. Rg2 {[%emt 0:05:13]} Re8 {[%emt 0:00:42]} 34. Qd2 {[%emt 0:02:37]} Qf3 {[%emt 0:01:47]} 35. Rf2 {[%emt 0:04:40]} Qh5 {[%emt 0:00:55]} 36. Qd1 {[%emt 0:00:36]} Qh3 {[%emt 0:01:31]} 37. Qf1 {[%emt 0:01:21]} Qh6 {[%emt 0:00:39]} 38. Re2 {[%emt 0:01:50]} Rh8 {[%emt 0:00:30]} 39. Qg2 {[%emt 0:00:53]} f4 {[%emt 0:01:16]} 40. gxf4 {[%emt 0:01:49]} gxf4 {[%emt 0:00:11]} 41. Ree5 {[%emt 0:03:19]} f3 {[%emt 0:01:37]} 42. Qd2 {[%emt 0:00:48]} Rg8+ {[%emt 0:01:23]} 43. Kh1 {[%emt 0:00:39]} Qh3 {[%emt 0:01:50]} 44. Qf2 {[%emt 0:01:29]} Rg2 {[%emt 0:02:37]} 45. Rh5 {[%emt 0:01:14]} Rxf2 {[%emt 0:00:43]} 0-1

[Event "FRA-ch Youth U12W 2019"]
[Site "Hyeres"]
[Date "2019.04.21"]
[Round "9.4"]
[White "Sivasankaran, Sansita"]
[Black "Albrizio-Maffre, Eve"]
[Result "1-0"]
[ECO "D02"]
[WhiteElo "1454"]
[BlackElo "1328"]
[Annotator "NA"]
[PlyCount "93"]
[EventDate "2019.04.14"]
[EventType "swiss"]
[EventCountry "FRA"]
[SourceTitle "playchess.com"]
[Source "ChessBase"]
[SourceQuality "1"]
[TimeControl "5400+30"]

1. Nf3 {[%emt 0:00:00]} Nf6 {[%emt 0:00:00]} 2. g3 {[%emt 0:00:00]} d5 {[%emt 0:00:52]} 3. d4 {[%emt 0:00:12]} g6 {[%emt 0:00:48]} 4. Bg2 {[%emt 0:00:17]} Bg7 {[%emt 0:02:42]} 5. O-O {[%emt 0:00:44]} c5 {[%emt 0:00:52]} 6. c3 {[%emt 0:03:46]} O-O {[%emt 0:05:57]} 7. dxc5 {[%emt 0:03:54]} Qc7 {[%emt 0:04:29]} 8. b4 {[%emt 0:01:17]} a5 {[%emt 0:07:27]} 9. Bb2 {[%emt 0:01:07]} Nc6 {[%emt 0:01:31]} 10. a3 {[%emt 0:00:47]} Be6 {[%emt 0:03:45]} 11. Nd4 {[%emt 0:05:05]} Ne5 {[%emt 0:08:42]} 12. Nxe6 {[%emt 0:02:30]} fxe6 {[%emt 0:00:18]} 13. Nd2 {[%emt 0:00:25]} Rfd8 {[%emt 0:04:38]} 14. Qb3 {[%emt 0:05:06]} b6 {[%emt 0:04:09]} 15. cxb6 {[%emt 0:10:28]} Qxb6 {[%emt 0:01:49]} 16. c4 {[%emt 0:01:06]} Nc6 {[%emt 0:06:01]} 17. cxd5 {[%emt 0:01:23]} exd5 {[%emt 0:01:04]} 18. Bxf6 {[%emt 0:01:04]} Bxf6 {[%emt 0:00:27]} 19. Bxd5+ {[%emt 0:00:25]} Kf8 {[%emt 0:01:00]} 20. Rac1 {[%emt 0:01:04]} Nd4 {[%emt 0:04:59]} 21. Qc4 {[%emt 0:06:56]} Nxe2+ {[%emt 0:01:41]} 22. Qxe2 {[%emt 0:01:02]} Rxd5 {[%emt 0:00:18]} 23. Nc4 {[%emt 0:03:35]} Qb5 {[%emt 0:02:40]} 24. Qf3 {[%emt 0:05:14]} Rad8 {[%emt 0:03:57]} 25. Nxa5 {[%emt 0:03:01]} Rd3 {[%emt 0:01:51]} 26. Qc6 {[%emt 0:01:50]} Qxc6 {[%emt 0:04:11]} 27. Nxc6 {[%emt 0:00:18]} Ra8 {[%emt 0:00:19]} 28. b5 {[%emt 0:01:54]} Bd4 {[%emt 0:04:44]} 29. Nxd4 {[%emt 0:01:46]} Rxd4 {[%emt 0:00:07]} 30. Rb1 {[%emt 0:02:44]} Rxa3 {[%emt 0:01:52]} 31. b6 {[%emt 0:00:11]} Ra8 {[%emt 0:00:12]} 32. b7 {[%emt 0:01:09]} Rb8 {[%emt 0:00:09]} 33. Rb2 {[%emt 0:03:14]} Rd7 {[%emt 0:01:55]} 34. Rfb1 {[%emt 0:00:16]} Kf7 {[%emt 0:01:47]} 35. Kg2 {[%emt 0:00:12]} Kf6 {[%emt 0:00:30]} 36. f4 {[%emt 0:00:30]} Kf5 {[%emt 0:00:30]} 37. h3 {[%emt 0:00:30]} Rd5 {[%emt 0:00:30]} 38. Rb5 {[%emt 0:00:30]} e6 {[%emt 0:00:30]} 39. Kf3 {[%emt 0:00:30]} g5 {[%emt 0:00:30]} 40. fxg5 {[%emt 0:00:30]} Kxg5 {[%emt 0:00:30]} 41. Ke4 {[%emt 0:00:30]} Kf6 {[%emt 0:00:30]} 42. Rxd5 {[%emt 0:00:30]} exd5+ {[%emt 0:00:30]} 43. Kxd5 {[%emt 0:00:30]} Ke7 {[%emt 0:00:30]} 44. Kc6 {[%emt 0:00:30]} Kd8 {[%emt 0:00:30]} 45. Rd1+ {[%emt 0:00:30]} Ke7 {[%emt 0:05:05]} 46. Kc7 {[%emt 0:05:15]} Rxb7+ {[%emt 0:00:30]} 47. Kxb7 {[%emt 0:00:30]} 1-0